bitfinex-derivatives/quotes_BTCF0:USTF0_20241019
["timestamp","ask_amount","ask_price","bid_price","bid_amount"]
[1729358405345,0.10435152,68130.0,68129.0,0.32099598]
[1729358406759,0.10420883,68130.0,68129.0,0.32099598]
[1729358407554,0.0002,68132.0,68129.0,0.65896074]
[1729358407858,0.066045,68131.0,68130.0,0.33796476]
[1729358408056,0.066045,68131.0,68130.0,0.40401076]
[1729358408256,0.066045,68131.0,68130.0,0.74286425]
[1729358408757,0.066045,68131.0,68130.0,0.62544571]
[1729358410154,0.066045,68131.0,68130.0,0.74286425]
[1729358410553,0.0002,68132.0,68131.0,0.066045]
[1729358410757,0.066242,68135.0,68131.0,0.3373158]
[1729358411062,0.066242,68135.0,68134.0,0.10271284]
[1729358411260,0.066242,68135.0,68134.0,0.3373158]
[1729358411452,0.066242,68135.0,68134.0,0.556439]
[1729358411960,0.066242,68135.0,68134.0,0.73990054]
[1729358412462,0.0002,68136.0,68134.0,0.73990054]
[1729358412767,0.0002,68136.0,68135.0,0.40193133]
[1729358413262,0.0002,68136.0,68135.0,0.62207591]
[1729358414057,0.0002,68136.0,68135.0,0.73949445]
[1729358414959,0.0002,68136.0,68135.0,0.62207591]
[1729358416268,0.0002,68136.0,68135.0,1.10029445]
[1729358416960,0.0002,68136.0,68135.0,0.98287591]
[1729358421167,0.0002,68136.0,68135.0,0.98146286]
[1729358422557,0.066039,68138.0,68135.0,0.64698658]
[1729358422759,0.0845177,68137.0,68135.0,0.64698658]
[1729358422963,0.0845177,68137.0,68136.0,0.066041]
[1729358423268,0.0845177,68137.0,68136.0,0.28713339]
[1729358425560,0.03910961,68137.0,68136.0,0.28713339]
[1729358425769,0.0002,68140.0,68139.0,0.066038]
[1729358425965,0.04566124,68140.0,68139.0,0.066038]
[1729358426166,0.04566124,68140.0,68139.0,0.28662229]
[1729358426366,0.0002,68140.0,68139.0,0.28662229]
[1729358429970,0.06823268,68147.0,68146.0,0.066031]
[1729358429971,0.00220168,68147.0,68146.0,0.066031]
[1729358430175,0.0002,68149.0,68143.0,0.3608]
[1729358430474,0.0002,68149.0,68146.0,0.21941301]
[1729358430670,0.0002,68149.0,68148.0,0.066029]
[1729358430867,0.0002,68149.0,68148.0,0.27070816]
[1729358431064,0.0002,68149.0,68148.0,0.49141385]
[1729358435166,0.0002,68149.0,68148.0,0.51820836]
[1729358437583,0.0002,68149.0,68148.0,0.3135292]
[1729358445179,0.03932436,68149.0,68148.0,0.3135292]
[1729358445382,0.0002,68149.0,68148.0,0.3135292]
[1729358445579,0.0002,68149.0,68148.0,0.51789364]
[1729358447279,0.0002,68149.0,68148.0,0.40676278]
[1729358449194,0.0002,68149.0,68148.0,0.51798954]
[1729358449695,0.0002,68149.0,68148.0,0.51796316]
[1729358450297,0.066228,68149.0,68148.0,0.4067945]
[1729358450692,0.066228,68149.0,68148.0,0.51804441]
[1729358457203,0.066228,68149.0,68148.0,0.74992387]
[1729358457506,0.066228,68149.0,68148.0,0.62070951]
[1729358457907,0.066228,68149.0,68148.0,0.74992217]
[1729358458095,0.066228,68149.0,68148.0,0.74992307]
[1729358458606,0.066228,68149.0,68148.0,0.74994165]
[1729358459003,0.066228,68149.0,68148.0,0.64727655]
[1729358459395,0.066228,68149.0,68148.0,0.74998855]
[1729358459598,0.066228,68149.0,68148.0,0.64727655]
[1729358459799,0.066228,68149.0,68148.0,0.75000795]
[1729358460205,0.066228,68149.0,68148.0,0.64727655]
[1729358460611,0.10563652,68149.0,68148.0,0.3135292]
[1729358464207,0.15129188,68149.0,68148.0,0.3135292]
[1729358464518,0.10563652,68149.0,68148.0,0.3135292]
[1729358464817,0.15128129,68149.0,68148.0,0.3135292]
[1729358465017,0.10563652,68149.0,68148.0,0.3135292]
[1729358465708,0.15128982,68149.0,68148.0,0.3135292]
[1729358466015,0.10563652,68149.0,68148.0,0.3135292]
[1729358466218,0.15131188,68149.0,68148.0,0.3135292]
[1729358467603,0.066228,68149.0,68148.0,0.64774969]
[1729358472521,0.066228,68149.0,68148.0,0.76516823]
[1729358473419,0.066228,68149.0,68148.0,0.64771114]
[1729358473619,0.066228,68149.0,68148.0,0.76512968]
[1729358474411,0.0002,68154.0,68148.0,0.76512968]
[1729358474611,0.066024,68153.0,68152.0,0.10274895]
[1729358474814,0.066024,68153.0,68152.0,0.43693089]
[1729358475012,0.066024,68153.0,68152.0,0.65808469]
[1729358475320,0.066024,68153.0,68152.0,0.52875106]
[1729358475721,0.15216315,68153.0,68152.0,0.2211538]
[1729358475919,0.20482063,68153.0,68152.0,0.2211538]
[1729358476222,0.066025,68152.0,68150.0,0.22023961]
[1729358476419,0.08613915,68151.0,68150.0,0.22023961]
[1729358476721,0.08633915,68151.0,68150.0,0.22023961]
[1729358477019,0.08633915,68151.0,68148.0,0.0002]
[1729358477233,0.151809,68150.0,68149.0,0.21887379]
[1729358477412,0.151809,68150.0,68148.0,0.0002]
[1729358477413,0.066028,68149.0,68148.0,0.0002]
[1729358477615,0.15181,68149.0,68148.0,0.0002]
[1729358477825,0.15181,68149.0,68148.0,0.21907379]
[1729358477826,0.15201,68149.0,68148.0,0.21907379]
[1729358479429,0.085982,68149.0,68148.0,0.28510279]
[1729358479823,0.15201,68149.0,68148.0,0.28510279]
[1729358482727,0.066228,68149.0,68148.0,0.61831853]
[1729358486725,0.066228,68149.0,68148.0,0.61830032]
[1729358490828,0.20463546,68149.0,68148.0,0.28510279]
[1729358496131,0.20473065,68149.0,68148.0,0.28510279]
[1729358497737,0.066228,68149.0,68148.0,0.61804654]
[1729358500532,0.0002,68149.0,68148.0,0.73546508]
[1729358502237,0.0002,68151.0,68148.0,0.69856875]
[1729358502538,0.0002,68151.0,68150.0,0.18343743]
[1729358502738,0.0002,68151.0,68150.0,0.39897075]
[1729358502932,0.0002,68151.0,68150.0,0.73564326]
[1729358503344,0.0002,68151.0,68150.0,0.61823398]
[1729358503540,0.0002,68151.0,68150.0,0.73564326]
[1729358504429,0.0002,68151.0,68150.0,0.61823398]
[1729358505732,0.0002,68151.0,68150.0,0.48937955]
[1729358506035,0.0002,68151.0,68150.0,0.3783983]
[1729358512642,0.0002,68151.0,68150.0,0.46641411]
[1729358512847,0.0002,68151.0,68150.0,0.28529023]
[1729358513235,0.0400429,68151.0,68150.0,0.28529023]
[1729358515441,0.0002,68151.0,68150.0,0.28529023]
[1729358515641,0.0400699,68151.0,68150.0,0.28529023]
[1729358520454,0.04009947,68151.0,68150.0,0.28529023]
[1729358520846,0.0002,68151.0,68150.0,0.61761776]
[1729358526247,0.0002,68151.0,68150.0,0.72033152]
[1729358526756,0.0002,68151.0,68150.0,0.61761776]
[1729358527146,0.066226,68151.0,68150.0,0.61761776]
[1729358528656,0.066226,68151.0,68150.0,0.61764904]
[1729358533349,0.066226,68151.0,68150.0,0.6177457]
[1729358534945,0.26754821,68151.0,68150.0,0.28529023]
[1729358535357,0.20496222,68151.0,68150.0,0.28529023]
[1729358535753,0.36640605,68151.0,68150.0,0.28529023]
[1729358535961,0.20496222,68151.0,68150.0,0.28529023]
[1729358538361,0.20504439,68151.0,68150.0,0.28529023]
[1729358542870,0.066226,68151.0,68150.0,0.61777328]
[1729358543166,0.066226,68151.0,68150.0,0.61774237]
[1729358545562,0.0002,68151.0,68150.0,0.61774237]
[1729358548065,0.0002,68151.0,68150.0,0.61768188]
[1729358550061,0.0002,68151.0,68150.0,0.28529023]
[1729358550263,0.04010403,68151.0,68150.0,0.28529023]
[1729358550465,0.13919135,68151.0,68150.0,0.28529023]
[1729358557677,0.13936902,68151.0,68150.0,0.28529023]
[1729358558177,0.0002,68151.0,68150.0,0.48910891]
[1729358558374,0.0002,68151.0,68150.0,0.7204537]
[1729358560971,0.0002,68151.0,68150.0,0.61772043]
[1729358561675,0.0002,68151.0,68150.0,0.48910891]
[1729358562482,0.0002,68151.0,68150.0,0.4887465]
[1729358564982,0.0002,68151.0,68150.0,0.28529023]
[1729358565189,0.05316897,68151.0,68150.0,0.28529023]
[1729358565393,0.09968568,68151.0,68150.0,0.28529023]
[1729358565588,0.13975014,68151.0,68150.0,0.28529023]
[1729358567283,0.13986659,68151.0,68150.0,0.28529023]
[1729358572287,0.13990451,68151.0,68150.0,0.28529023]
[1729358572987,0.0002,68151.0,68150.0,0.48872657]
[1729358574784,0.0002,68151.0,68150.0,0.59145926]
[1729358576089,0.0002,68151.0,68150.0,0.71991423]
[1729358576392,0.0002,68151.0,68150.0,0.61718154]
[1729358576590,0.0002,68151.0,68150.0,0.73459082]
[1729358577491,0.0002,68151.0,68150.0,0.61718154]
[1729358579697,0.0002,68151.0,68150.0,0.71994474]
[1729358579898,0.0002,68151.0,68150.0,0.48872657]
[1729358580099,0.0002,68151.0,68150.0,0.28529023]
[1729358580799,0.13985446,68151.0,68150.0,0.28529023]
[1729358584803,0.20588046,68151.0,68150.0,0.21926323]
[1729358585003,0.56668046,68151.0,68150.0,0.21926323]
[1729358585207,0.066027,68150.0,68149.0,0.22087022]
[1729358585395,0.13940146,68150.0,68148.0,0.0002]
[1729358585600,0.20542946,68149.0,68148.0,0.0002]
[1729358585993,0.20542946,68149.0,68148.0,0.2211496]
[1729358587998,0.10619235,68149.0,68148.0,0.4248885]
[1729358588201,0.066228,68149.0,68148.0,0.4248885]
[1729358589909,0.09209894,68149.0,68148.0,0.4248885]
[1729358592800,0.09209894,68149.0,68148.0,0.5276517]
[1729358593510,0.09209894,68149.0,68148.0,0.65620417]
[1729358593706,0.09209894,68149.0,68148.0,0.72223317]
[1729358593907,0.09209894,68149.0,68148.0,0.5936807]
[1729358594111,0.09209894,68149.0,68148.0,0.72221824]
[1729358594313,0.066228,68149.0,68148.0,0.5936807]
[1729358594517,0.066228,68149.0,68148.0,0.72217661]
[1729358595107,0.066228,68149.0,68148.0,0.5936807]
[1729358595304,0.066228,68149.0,68148.0,0.72222373]
[1729358595509,0.066228,68149.0,68148.0,0.5936807]
[1729358595710,0.066228,68149.0,68148.0,0.72223491]
[1729358596011,0.066228,68149.0,68148.0,0.72218223]
[1729358596316,0.066228,68149.0,68148.0,0.61947171]
[1729358596509,0.066228,68149.0,68148.0,0.61927171]
[1729358596711,0.066228,68149.0,68148.0,0.72197803]
[1729358597508,0.066228,68149.0,68148.0,0.72190234]
[1729358597908,0.066228,68149.0,68148.0,0.61919602]
[1729358603215,0.066228,68149.0,68148.0,0.2869786]
[1729358603415,0.20592567,68149.0,68148.0,0.2869786]
[1729358604217,0.1529007,68149.0,68148.0,0.2869786]
[1729358609418,0.15279982,68149.0,68148.0,0.2869786]
[1729358610323,0.066228,68149.0,68148.0,0.49053416]
[1729358610727,0.066228,68149.0,68148.0,0.72167909]
[1729358611526,0.066228,68149.0,68148.0,0.61896711]
[1729358614337,0.066228,68149.0,68148.0,0.61886818]
[1729358615728,0.0002,68149.0,68148.0,0.73627746]
[1729358616714,0.0002,68150.0,68148.0,0.55283918]
[1729358616922,0.0002,68150.0,68149.0,0.51533609]
[1729358617319,0.0002,68150.0,68149.0,0.73484153]
[1729358618131,0.20177133,68150.0,68149.0,0.28553344]
[1729358618833,0.30141356,68150.0,68149.0,0.28553344]
[1729358619321,0.13996973,68150.0,68149.0,0.28553344]
[1729358623227,0.13996973,68150.0,68149.0,0.64633344]
[1729358623629,0.13996973,68150.0,68149.0,0.28553344]
[1729358625129,0.0002,68150.0,68149.0,0.61718171]
[1729358633139,0.0002,68150.0,68149.0,0.37823662]
[1729358634847,0.0002,68150.0,68149.0,0.4662654]
[1729358635339,0.3608,68182.0,68149.0,1.55196625]
[1729358635536,0.065999,68179.0,68178.0,0.05865836]
[1729358635745,0.066001,68177.0,68176.0,0.0002]
[1729358635942,0.0002,68177.0,68170.0,0.07332295]
[1729358636247,0.0002,68177.0,68169.0,0.22024134]
[1729358636248,0.3608,68171.0,68169.0,0.22024134]
[1729358636551,0.361,68171.0,68167.0,0.07332295]
[1729358636736,0.0002,68170.0,68168.0,0.21960853]
[1729358637049,0.0002,68168.0,68167.0,0.07332295]
[1729358637351,0.0004,68168.0,68166.0,0.07332295]
[1729358637641,0.0004,68168.0,68167.0,0.21960853]
[1729358637948,0.0004,68168.0,68166.0,0.3598095]
[1729358638152,0.0002,68167.0,68166.0,0.13933395]
[1729358638338,0.0002,68167.0,68166.0,0.066011]
[1729358638646,0.0002,68167.0,68166.0,0.28648655]
[1729358640147,0.0381295,68167.0,68166.0,0.28648655]
[1729358640342,0.08216743,68167.0,68166.0,0.28648655]
[1729358640544,0.12256743,68167.0,68166.0,0.22047555]
[1729358640751,0.12256743,68167.0,68164.0,0.00219999]
[1729358640752,0.066012,68165.0,68164.0,0.00219999]
[1729358640948,0.427012,68165.0,68164.0,0.00219999]
[1729358641249,0.50897943,68165.0,68164.0,0.22143892]
[1729358641458,0.50829799,68165.0,68164.0,0.22143892]
[1729358641637,0.50829799,68165.0,68164.0,0.21923893]
[1729358642148,0.50829799,68165.0,68163.0,0.22042486]
[1729358642356,0.08148599,68164.0,68163.0,0.28643886]
[1729358642649,0.08148599,68164.0,68163.0,0.066014]
[1729358642848,0.08148599,68164.0,68163.0,0.28751045]
[1729358645341,0.13135908,68164.0,68163.0,0.28751045]
[1729358646349,0.13152422,68164.0,68163.0,0.28751045]
[1729358648149,0.066213,68164.0,68163.0,0.31607776]
[1729358648350,0.066213,68164.0,68163.0,0.0552717]
[1729358648558,1.106333,68164.0,68163.0,0.12851835]
[1729358648855,1.04032,68164.0,68159.0,0.07324665]
[1729358649055,0.427017,68160.0,68159.0,0.07324665]
[1729358649257,0.066018,68159.0,68158.0,0.07324665]
[1729358649557,0.109118,68159.0,68158.0,0.07324665]
[1729358649742,0.709118,68159.0,68158.0,0.07324665]
[1729358652255,0.109118,68159.0,68158.0,0.07324665]
[1729358653351,0.709118,68159.0,68158.0,0.07324665]
[1729358654251,0.0431,68159.0,68157.0,0.07324665]
[1729358655662,0.08093165,68151.0,68150.0,0.28719323]
[1729358659255,0.44173165,68151.0,68150.0,0.28719323]
[1729358660361,1.04170939,68151.0,68144.0,0.0002]
[1729358660553,0.427032,68145.0,68144.0,0.0002]
[1729358660756,0.59662368,68145.0,68144.0,0.0002]
[1729358663164,0.516752,68145.0,68144.0,0.0002]
[1729358663364,1.556992,68145.0,68144.0,0.0002]
[1729358664165,1.556992,68145.0,68144.0,0.04410583]
[1729358664367,1.556992,68145.0,68144.0,0.0002]
[1729358665870,1.917792,68145.0,68144.0,0.0002]
[1729358667853,1.196192,68145.0,68144.0,0.0002]
[1729358668154,1.917792,68145.0,68144.0,0.0002]
[1729358669370,1.196192,68145.0,68144.0,0.0002]
[1729358669565,1.917792,68145.0,68144.0,0.0002]
[1729358673990,1.196192,68145.0,68144.0,0.0002]
[1729358674186,1.917792,68145.0,68144.0,0.0002]
[1729358675181,1.477552,68145.0,68144.0,0.0002]
[1729358675382,1.917792,68145.0,68144.0,0.0002]
[1729358677893,0.787832,68145.0,68144.0,0.0002]
[1729358678394,0.516792,68145.0,68144.0,0.0002]
[1729358680282,0.155992,68145.0,68144.0,0.0002]
[1729358680482,0.516792,68145.0,68144.0,0.0002]
[1729358680889,0.155992,68145.0,68144.0,0.0002]
[1729358681084,0.516792,68145.0,68144.0,0.0002]
[1729358683090,0.155992,68145.0,68144.0,0.0002]
[1729358683295,0.516792,68145.0,68144.0,0.0002]
[1729358684686,0.427032,68145.0,68144.0,0.0002]
[1729358684890,0.516792,68145.0,68144.0,0.0002]
[1729358686292,0.516792,68145.0,68144.0,0.16879372]
[1729358686493,0.516792,68145.0,68144.0,0.0002]
[1729358687401,0.516792,68145.0,68144.0,0.16881622]
[1729358688199,0.516792,68145.0,68144.0,0.09557994]
[1729358689092,0.516792,68145.0,68144.0,0.0002]
[1729358689290,0.516792,68145.0,68144.0,0.09561176]
[1729358691193,0.516792,68145.0,68144.0,0.1835993]
[1729358693292,0.64498311,68145.0,68144.0,0.0002]
[1729358693492,0.59632568,68145.0,68144.0,0.0002]
[1729358700214,0.64479466,68145.0,68144.0,0.0002]
[1729358700393,0.516792,68145.0,68144.0,0.16939394]
[1729358700595,0.516792,68145.0,68144.0,0.09601717]
[1729358702709,0.427032,68145.0,68144.0,0.09601717]
[1729358703006,0.45068,68145.0,68144.0,0.42965248]
[1729358703402,0.516712,68145.0,68144.0,0.42965248]
[1729358703597,0.516712,68145.0,68144.0,0.09601717]
[1729358704108,0.516712,68145.0,68144.0,0.0002]
[1729358704698,0.516712,68145.0,68144.0,0.09591078]
[1729358706703,0.516712,68145.0,68144.0,0.09590492]
[1729358708306,0.70132285,68145.0,68144.0,0.0002]
[1729358708910,0.80534596,68145.0,68144.0,0.0002]
[1729358709110,0.64412441,68145.0,68144.0,0.0002]
[1729358711303,0.70140415,68145.0,68144.0,0.00010265]
[1729358714016,0.70159308,68145.0,68144.0,0.00010265]
[1729358715114,0.64431334,68145.0,68144.0,0.00010265]
[1729358715616,0.516712,68145.0,68144.0,0.09573401]
[1729358716307,0.516712,68145.0,68144.0,0.0957447]
[1729358723313,0.516912,68145.0,68144.0,0.0957447]
[1729358723614,0.59632185,68145.0,68144.0,0.00010265]
[1729358730513,0.59632185,68145.0,68144.0,0.09570818]
[1729358730514,0.516912,68145.0,68144.0,0.09570818]
[1729358734312,0.516912,68145.0,68144.0,0.16913369]
[1729358734516,0.516912,68145.0,68144.0,0.09570818]
[1729358734821,0.516912,68145.0,68144.0,0.00010265]
[1729358736628,0.066034,68143.0,68142.0,0.0734251]
[1729358736930,0.066234,68143.0,68142.0,0.0734251]
[1729358737726,0.066234,68143.0,68142.0,0.16919799]
[1729358738031,0.066234,68143.0,68142.0,0.0734251]
[1729358738829,0.0002,68143.0,68142.0,0.09576239]
[1729358739033,0.066234,68143.0,68142.0,0.16916174]
[1729358739235,0.066234,68143.0,68142.0,0.09576239]
[1729358739726,0.066234,68143.0,68142.0,0.16916031]
[1729358739929,0.066234,68143.0,68142.0,0.07339792]
[1729358740834,0.09283634,68143.0,68142.0,0.07339792]
[1729358741233,0.09283634,68143.0,68142.0,0.16912156]
[1729358741532,0.09283634,68143.0,68142.0,0.07339792]
[1729358741737,0.09283634,68143.0,68142.0,0.16914278]
[1729358741925,0.09283634,68143.0,68142.0,0.09574486]
[1729358742126,0.09283634,68143.0,68142.0,0.16914014]
[1729358742333,0.09283634,68143.0,68142.0,0.07339528]
[1729358742635,0.09283634,68143.0,68142.0,0.16915198]
[1729358743025,0.09283634,68143.0,68142.0,0.16914269]
[1729358743527,0.09283634,68143.0,68142.0,0.07339528]
[1729358743735,0.18271634,68143.0,68142.0,0.16913548]
[1729358744937,0.18271634,68143.0,68142.0,0.16912908]
[1729358745431,0.18271634,68143.0,68137.0,0.0407]
[1729358745432,0.19577754,68143.0,68137.0,0.0407]
[1729358745734,0.427039,68138.0,68137.0,0.0407]
[1729358745923,0.5061342,68138.0,68137.0,0.0407]
[1729358749133,0.5960142,68138.0,68137.0,0.0407]
[1729358753533,0.516919,68138.0,68137.0,0.13656045]
[1729358754338,0.516919,68138.0,68137.0,0.13656132]
[1729358755531,0.516919,68138.0,68137.0,0.22461864]
[1729358755732,0.516919,68138.0,68137.0,0.13656132]
[1729358757941,0.516919,68138.0,68137.0,0.22461864]
[1729358758233,0.516919,68138.0,68137.0,0.13656132]
[1729358758540,0.361,68138.0,68137.0,0.22461864]
[1729358758734,0.08968,68138.0,68137.0,0.53540351]
[1729358759245,0.02680234,68143.0,68137.0,0.53540351]
[1729358759548,0.08968,68142.0,68138.0,0.20980132]
[1729358759743,0.08968,68142.0,68139.0,0.20980132]
[1729358759941,0.08968,68142.0,68140.0,0.20980132]
[1729358760149,0.08968,68142.0,68141.0,0.09586132]
[1729358760342,0.08968,68142.0,68141.0,0.31721089]
[1729358760644,0.16953073,68142.0,68138.0,0.22134957]
[1729358760948,0.0002,68139.0,68137.0,0.10694]
[1729358761132,0.08005073,68138.0,68137.0,0.10694]
[1729358761536,0.08005073,68138.0,68137.0,0.32796962]
[1729358762150,0.16959249,68138.0,68137.0,0.32796962]
[1729358763346,0.12676605,68138.0,68137.0,0.32796962]
[1729358763856,0.12676605,68138.0,68137.0,0.26192962]
[1729358768655,0.08988,68138.0,68137.0,0.47065705]
[1729358771855,0.08988,68138.0,68137.0,0.47079457]
[1729358772055,0.02680234,68143.0,68137.0,0.47079457]
[1729358772056,0.02680234,68143.0,68137.0,1.39749639]
[1729358772243,0.41112,68158.0,68137.0,1.39749639]
[1729358772244,0.066028,68150.0,68141.0,0.3608]
[1729358772556,0.08968,68149.0,68144.0,0.066233]
[1729358772853,0.08968,68149.0,68145.0,0.2088646]
[1729358773055,0.08968,68149.0,68146.0,0.2088646]
[1729358773251,0.08968,68149.0,68147.0,0.2088646]
[1729358773457,0.08968,68149.0,68148.0,0.09528677]
[1729358773952,0.08968,68149.0,68148.0,0.31647469]
[1729358774153,0.08968,68149.0,68148.0,0.31611076]
[1729358774353,0.08968,68149.0,68148.0,0.4040026]
[1729358774950,0.155708,68149.0,68148.0,0.4040026]
[1729358775158,0.066028,68149.0,68148.0,0.4040026]
[1729358775552,0.066028,68149.0,68148.0,0.2797734]
[1729358778362,0.47745695,68151.0,68148.0,0.2797734]
[1729358779558,0.38777695,68151.0,68148.0,0.2797734]
[1729358780160,0.02697695,68151.0,68148.0,0.2797734]
[1729358780362,0.155706,68152.0,68148.0,0.2797734]
[1729358780563,0.155706,68152.0,68151.0,0.04392212]
[1729358780759,0.155706,68152.0,68148.0,0.2797734]
[1729358780760,0.08968,68152.0,68149.0,0.05858548]
[1729358781058,0.066021,68157.0,68149.0,0.05858548]
[1729358781059,0.066018,68160.0,68151.0,0.21878799]
[1729358781253,0.066018,68160.0,68156.0,0.4047195]
[1729358781448,0.066018,68160.0,68157.0,0.05855933]
[1729358781652,0.066018,68160.0,68157.0,0.27982246]
[1729358782261,0.066018,68160.0,68157.0,0.22126313]
[1729358782670,0.1318858,68159.0,68157.0,0.103806]
[1729358782850,0.1318858,68158.0,68157.0,0.103806]
[1729358783367,0.1318858,68158.0,68157.0,0.05147027]
[1729358785860,0.12684477,68158.0,68157.0,0.05147027]
[1729358788567,0.12734279,68158.0,68157.0,0.05147027]
[1729358790566,0.16091993,68160.0,68157.0,0.1100296]
[1729358790756,0.0930949,68162.0,68158.0,0.05855933]
[1729358790956,0.0930949,68162.0,68161.0,0.04387539]
[1729358791357,0.0930949,68162.0,68161.0,0.26274719]
[1729358795659,0.0930949,68162.0,68161.0,0.2188718]
[1729358796060,0.0270799,68162.0,68161.0,0.05855933]
[1729358796376,0.08968,68163.0,68161.0,0.22099478]
[1729358796558,0.11663366,68163.0,68162.0,0.05851265]
[1729358796759,0.02695366,68163.0,68162.0,0.05851265]
[1729358797059,0.00084,68167.0,68162.0,0.82099478]
[1729358797266,0.02708051,68167.0,68164.0,0.05850799]
[1729358797459,0.155649,68169.0,68164.0,0.05850799]
[1729358797668,0.155649,68169.0,68165.0,0.22022581]
[1729358797669,0.19350163,68168.0,68165.0,0.22022581]
[1729358797864,0.12749163,68167.0,68165.0,0.22022581]
[1729358798065,0.12749163,68167.0,68163.0,0.22042581]
[1729358798265,0.12749163,68167.0,68164.0,0.21891677]
[1729358800165,0.12801807,68166.0,68164.0,0.21891677]
[1729358800475,0.12801807,68165.0,68164.0,0.21891677]
[1729358800773,0.12801807,68167.0,68164.0,0.21891677]
[1729358801070,0.12801807,68166.0,68164.0,0.21891677]
[1729358801273,0.12801807,68165.0,68164.0,0.21891677]
[1729358801457,0.07942632,68165.0,68164.0,0.21891677]
[1729358801765,0.12801807,68165.0,68164.0,0.21891677]
[1729358801972,0.03675363,68165.0,68164.0,0.21891677]
[1729358804963,0.03675363,68165.0,68164.0,0.10147127]
[1729358805674,0.06601,68168.0,68164.0,0.10147127]
[1729358805865,0.06601,68168.0,68166.0,0.05856848]
[1729358806064,0.06601,68168.0,68164.0,0.10147127]
[1729358806065,0.06601,68168.0,68167.0,0.05856848]
[1729358806281,0.06601,68168.0,68167.0,0.27871238]
[1729358808277,0.06601,68168.0,68167.0,0.2201439]
[1729358808571,0.06601,68168.0,68165.0,0.21875631]
[1729358808779,0.0002,68166.0,68165.0,0.21875631]
[1729358808974,0.0002,68166.0,68164.0,0.07323185]
[1729358809174,0.0002,68165.0,68164.0,0.07323185]
[1729358809475,0.0002,68165.0,68164.0,0.38896659]
[1729358809685,0.0002,68165.0,68164.0,0.38896696]
[1729358810170,0.0002,68165.0,68164.0,0.21952729]
[1729358810476,0.0002,68165.0,68164.0,0.38905083]
[1729358810680,0.0002,68165.0,68164.0,0.31581898]
[1729358812579,0.03599154,68165.0,68164.0,0.21952729]
[1729358812765,0.19706963,68165.0,68164.0,0.21952729]
[1729358812967,0.28594507,68165.0,68164.0,0.21952729]
[1729358814384,0.28594513,68165.0,68164.0,0.21952729]
[1729358815171,0.12486704,68165.0,68164.0,0.21952729]
[1729358817886,0.12486704,68165.0,68164.0,0.28554029]
[1729358819382,0.12608874,68165.0,68164.0,0.28554029]
[1729358820789,0.0002,68165.0,68164.0,0.381551]
[1729358825484,0.0002,68165.0,68164.0,0.46944284]
[1729358826596,0.0002,68165.0,68164.0,0.381551]
[1729358827589,0.0002,68165.0,68164.0,0.28554029]
[1729358827796,0.0002,68165.0,68164.0,0.45497132]
[1729358827998,0.0002,68165.0,68164.0,0.45493616]
[1729358828183,0.0002,68165.0,68164.0,0.45492626]
[1729358829295,0.0002,68165.0,68164.0,0.45492809]
[1729358829480,0.0002,68165.0,68164.0,0.35890769]
[1729358829685,0.0002,68165.0,68164.0,0.28554029]
[1729358829885,0.0002,68165.0,68164.0,0.35890769]
[1729358830094,0.0002,68165.0,68164.0,0.28554029]
[1729358830797,0.0002,68165.0,68164.0,0.35890769]
[1729358832081,0.0002,68165.0,68164.0,0.28554029]
[1729358836497,0.066008,68170.0,68164.0,0.28554029]
[1729358837092,0.08964,68171.0,68164.0,0.28554029]
[1729358837288,0.066009,68169.0,68164.0,0.21972729]
[1729358837493,0.066009,68169.0,68165.0,0.066012]
[1729358837791,0.066009,68169.0,68166.0,0.21949621]
[1729358838200,0.066009,68169.0,68166.0,0.28550721]
[1729358838496,0.066009,68169.0,68166.0,0.066011]
[1729358838888,0.12618458,68168.0,68167.0,0.1031769]
[1729358839288,0.12618458,68168.0,68167.0,0.1691879]
[1729358840794,0.00220101,68172.0,68167.0,0.1031769]
[1729358841093,0.00220101,68172.0,68170.0,0.066008]
[1729358841094,0.12391674,68171.0,68170.0,0.066008]
[1729358841498,0.12391674,68171.0,68170.0,0.28699512]
[1729358844007,0.00220101,68172.0,68171.0,0.066007]
[1729358844403,0.00220101,68172.0,68171.0,0.28610782]
[1729358850105,0.00220101,68172.0,68171.0,0.34469053]
[1729358850814,0.08448401,68172.0,68171.0,0.28610782]
[1729358850998,0.12562551,68172.0,68171.0,0.0339124]
[1729358851406,0.12562551,68172.0,68171.0,0.0999194]
[1729358859116,0.00220101,68172.0,68171.0,0.19812663]
[1729358859518,0.00220101,68172.0,68171.0,0.28614548]
[1729358860415,0.00220101,68172.0,68171.0,0.19812663]
[1729358860617,0.00220101,68172.0,68171.0,0.2860598]
[1729358861209,0.00220101,68172.0,68171.0,0.19812663]
[1729358862322,0.00220101,68172.0,68171.0,0.31518838]
[1729358862819,0.00220101,68172.0,68171.0,0.19812663]
[1729358863318,0.00220101,68172.0,68171.0,0.31527246]
[1729358863510,0.00220101,68172.0,68171.0,0.19812663]
[1729358864120,0.00220101,68172.0,68171.0,0.31531947]
[1729358865011,0.00220101,68172.0,68171.0,0.31541354]
[1729358865817,0.00220101,68172.0,68171.0,0.19823049]
[1729358866016,0.03563624,68172.0,68171.0,0.0999194]
[1729358866220,0.19687924,68172.0,68171.0,0.0999194]
[1729358866410,0.11947994,68172.0,68171.0,0.0999194]
[1729358870115,0.28072294,68172.0,68171.0,0.0999194]
[1729358870422,0.11947994,68172.0,68171.0,0.0999194]
[1729358873117,0.19706282,68172.0,68171.0,0.0999194]
[1729358873516,0.28090652,68172.0,68171.0,0.0999194]
[1729358874018,0.00220101,68172.0,68171.0,0.31545408]
[1729358874521,0.00220101,68172.0,68171.0,0.31549846]
[1729358878226,0.00220101,68172.0,68171.0,0.19826923]
[1729358880923,0.07444597,68172.0,68171.0,0.0999194]
[1729358881128,0.11946969,68172.0,68171.0,0.0999194]
[1729358881522,0.28089627,68172.0,68171.0,0.0999194]
[1729358882028,0.28091195,68172.0,68171.0,0.0999194]
[1729358882720,0.28086616,68172.0,68171.0,0.0999194]
[1729358883523,0.1194239,68172.0,68171.0,0.0999194]
[1729358883724,0.19705097,68172.0,68171.0,0.0999194]
[1729358883916,0.28086457,68172.0,68171.0,0.0999194]
[1729358884523,0.1194239,68172.0,68171.0,0.0999194]
[1729358887441,0.11939124,68172.0,68171.0,0.0999194]
[1729358888434,0.19704096,68172.0,68171.0,0.0999194]
[1729358888634,0.280837,68172.0,68171.0,0.0999194]
[1729358889136,0.16364677,68172.0,68171.0,0.19835523]
[1729358889340,0.00220101,68172.0,68171.0,0.19835523]
[1729358892229,0.00220101,68172.0,68171.0,0.1983428]
[1729358897027,0.00220101,68172.0,68171.0,0.31555964]